fUSD/lending_fUSD_20250806
["ID","MTS","AMOUNT","RATE_DAILY","PERIOD"]
[377555681,1754441497574,-400.0,0.00036164,14]
[377555682,1754441497584,-1267.78,0.00036164,14]
[377555683,1754441497594,-400.0,0.00036164,14]
[377555684,1754441497604,-740.7,0.00036164,14]
[377555685,1754441497614,-1086.39,0.00036164,14]
[377555686,1754441497624,-400.0,0.00036164,14]
[377555687,1754441497634,-2220.62,0.00036164,14]
[377555688,1754441497644,-3842.03,0.00036164,14]
[377555689,1754441497654,-2522.97,0.00036164,14]
[377555690,1754441497664,-636.11,0.00036164,14]
[377555691,1754441497674,-692.62,0.00036164,14]
[377555692,1754441497683,-400.0,0.00036164,14]
[377555693,1754441497694,-400.0,0.00036164,14]
[377555694,1754441497704,-400.0,0.00036164,14]
[377555695,1754441497714,-400.0,0.00036164,14]
[377555696,1754441497724,-441.64,0.00036164,14]
[377555697,1754441497734,-400.0,0.00036164,14]
[377555698,1754441497745,-400.0,0.00036164,14]
[377555699,1754441497755,-1626.48,0.00036164,14]
[377555700,1754441497765,-2929.44,0.00036164,14]
[377555701,1754441497775,-400.0,0.00036164,14]
[377555702,1754441497785,-514.32,0.00036164,14]
[377555703,1754441497795,-1802.79,0.00036164,14]
[377555704,1754441497805,-2883.1,0.00036164,14]
[377555705,1754441497815,-1733.57,0.00036164,14]
[377555706,1754441497824,-400.0,0.00036164,14]
[377555707,1754441497834,-400.0,0.00036164,14]
[377555708,1754441497844,-814.92,0.00036164,14]
[377555709,1754441497856,-617.9,0.00036164,14]
[377555710,1754441497867,-648.4,0.00036164,14]
[377555711,1754441497877,-400.0,0.00036164,14]
[377555712,1754441497887,-400.0,0.00036164,14]
[377555713,1754441497898,-810.92,0.00036164,14]
[377555714,1754441497908,-1567.76,0.00036164,14]
[377555715,1754441497917,-717.54,0.00036164,14]
[377555716,1754441497927,-446.34,0.00036164,14]
[377555717,1754441497940,-2041.42,0.00036164,14]
[377555718,1754441497951,-465.12,0.00036164,14]
[377555719,1754441497963,-1676.56,0.00036164,14]
[377555720,1754441497973,-400.0,0.00036164,14]
[377555721,1754441497985,-400.0,0.00036164,14]
[377555722,1754441497995,-2264.3,0.00036164,14]
[377555723,1754441498005,-2481.83,0.00036164,14]
[377555724,1754441498016,-769.68,0.00036164,14]
[377555725,1754441498027,-1743.96,0.00036164,14]
[377555726,1754441498038,-1190.95,0.00036164,14]
[377555727,1754441498301,-2618.0,0.00036164,14]
[377555728,1754441498319,-1474.73,0.00036164,14]
[377555729,1754441498333,-400.0,0.00036164,14]
[377555730,1754441498343,-1715.04,0.00036164,14]
[377555731,1754441498353,-400.0,0.00036164,14]
[377555732,1754441498362,-400.0,0.00036164,14]
[377555733,1754441498371,-400.0,0.00036164,14]
[377555734,1754441498380,-400.0,0.00036164,14]
[377555735,1754441498389,-1322.37,0.00036164,14]
[377555736,1754441498398,-400.0,0.00036164,14]
[377555737,1754441498407,-2278.76,0.00036164,14]
[377555738,1754441498418,-400.0,0.00036164,14]
[377555739,1754441498427,-756.76,0.00036164,14]
[377555740,1754441498436,-400.0,0.00036164,14]
[377555741,1754441498445,-400.0,0.00036164,14]
[377555742,1754441498454,-1948.23,0.00036164,14]
[377555743,1754441498463,-1815.48,0.00036164,14]
[377555744,1754441498473,-1907.59,0.00036164,14]
[377555745,1754441498483,-1669.82,0.00036164,14]
[377555746,1754441498492,-423.84,0.00036164,14]
[377555747,1754441498502,-400.0,0.00036164,14]
[377555748,1754441498512,-400.0,0.00036164,14]
[377555749,1754441498522,-183.83978596,0.00036164,14]
[377555750,1754441498531,-400.0,0.00036164,14]
[377555751,1754441498541,-400.0,0.00036164,14]
[377555752,1754441498550,-831.1,0.00036164,14]
[377555753,1754441498559,-400.0,0.00036164,14]
[377555754,1754441498569,-400.0,0.00036164,14]
[377555755,1754441498578,-400.0,0.00036164,14]
[377555756,1754441498588,-1783.94,0.00036164,14]
[377555757,1754441498597,-400.0,0.00036164,14]
[377555758,1754441498606,-400.0,0.00036164,14]
[377555759,1754441498616,-1770.16,0.00036164,14]
[377555760,1754441498625,-400.0,0.00036164,120]
[377555761,1754441498635,-1787.59,0.00036164,14]
[377555762,1754441498644,-1801.46,0.00036164,14]
[377555763,1754441498653,-1066.27,0.00036164,14]
[377555764,1754441498662,-437.99,0.00036164,14]
[377555765,1754441498671,-400.0,0.00036164,14]
[377555766,1754441498681,-2492.4,0.00036164,14]
[377555767,1754441498690,-213.01342325,0.00036164,14]
[377555768,1754441498699,-400.0,0.00036164,14]
[377555769,1754441498709,-400.0,0.00036164,14]
[377555770,1754441498718,-400.0,0.00036164,14]
[377555771,1754441498727,-468.2,0.00036164,14]
[377555772,1754441498737,-2073.16,0.00036164,14]
[377555773,1754441498746,-1921.79,0.00036164,14]
[377555774,1754441498756,-151.0,0.00036164,7]
[377555775,1754441498765,-400.0,0.00036164,14]
[377555776,1754441498775,-416.61,0.00036164,14]
[377555777,1754441498784,-1958.65,0.00036164,14]
[377555778,1754441498794,-400.0,0.00036164,14]
[377555779,1754441498803,-400.0,0.00036164,14]
[377555780,1754441498812,-1952.38,0.00036164,14]
[377555781,1754441498822,-658.52,0.00036164,14]
[377555782,1754441498831,-400.0,0.00036164,14]
[377555783,1754441498840,-2017.97,0.00036164,14]
[377555784,1754441498850,-3474.01,0.00036164,14]
[377555785,1754441498862,-646.52,0.00036164,14]
[377555786,1754441498871,-400.0,0.00036164,14]
[377555787,1754441498881,-400.0,0.00036164,14]
[377555788,1754441498890,-400.0,0.00036164,14]
[377555789,1754441498899,-400.0,0.00036164,14]
[377555790,1754441498908,-403.29,0.00036164,14]
[377555791,1754441498918,-400.0,0.00036164,14]
[377555792,1754441498928,-400.0,0.00036164,14]
[377555793,1754441498939,-400.0,0.00036164,14]
[377555794,1754441498949,-1100.86,0.00036164,14]
[377555795,1754441498958,-400.0,0.00036164,14]
[377555796,1754441498967,-2521.13,0.00036164,14]
[377555797,1754441498976,-1458.82,0.00036164,14]
[377555798,1754441498986,-400.0,0.00036164,14]
[377555799,1754441498995,-400.0,0.00036164,14]
[377555800,1754441499005,-400.0,0.00036164,14]
[377555801,1754441499015,-2033.38,0.00036164,14]
[377555802,1754441499024,-575.31,0.00036164,14]
[377555803,1754441499034,-513.4,0.00036164,14]
[377555804,1754441499044,-1895.37,0.00036164,14]
[377555805,1754441499054,-1917.47,0.00036164,14]
[377555806,1754441499064,-2012.98,0.00036164,14]
[377555807,1754441499074,-400.0,0.00036164,14]
[377555808,1754441499085,-523.54,0.00036164,14]
[377555809,1754441499095,-400.0,0.00036164,14]
[377555810,1754441499104,-688.28,0.00036164,14]
[377555811,1754441499114,-367.69,0.00036164,14]
[377555812,1754441499124,-2389.58,0.00036164,14]
[377555813,1754441499134,-2160.95,0.00036164,14]
[377555814,1754441499143,-400.0,0.00036164,14]
[377555815,1754441499153,-2240.08,0.00036164,14]
[377555816,1754441499162,-502.13022832,0.00036164,14]
[377555817,1754441499172,-1549.07,0.00036164,14]
[377555818,1754441499181,-541.65,0.00036164,14]
[377555819,1754441499191,-472.55,0.00036164,14]
[377555820,1754441499201,-1389.33,0.00036164,14]
[377555821,1754441499211,-1994.62,0.00036164,14]
[377555822,1754441499220,-400.0,0.00036164,14]
[377555823,1754441499230,-400.0,0.00036164,14]
[377555824,1754441499239,-639.511026,0.00036164,7]
[377555825,1754441499249,-400.0,0.00036164,14]
[377555826,1754441499258,-400.0,0.00036164,14]
[377555827,1754441499268,-400.0,0.00036164,14]
[377555828,1754441499277,-400.0,0.00036164,14]
[377555829,1754441499287,-639.511026,0.00036164,7]
[377555830,1754441499296,-400.0,0.00036164,14]
[377555831,1754441499306,-400.0,0.00036164,14]
[377555832,1754441499315,-400.0,0.00036164,14]
[377555833,1754441499325,-400.0,0.00036164,14]
[377555834,1754441499335,-1144.5,0.00036164,14]
[377555835,1754441499345,-400.0,0.00036164,14]
[377555836,1754441499354,-771.87,0.00036164,14]
[377555837,1754441499365,-1161.31,0.00036164,14]
[377555838,1754441499385,-429.96,0.00036164,14]
[377555839,1754441499394,-400.0,0.00036164,14]
[377555840,1754441499403,-400.0,0.00036164,14]
[377555841,1754441499412,-4587.46,0.00036164,14]
[377555842,1754441499421,-400.0,0.00036164,14]
[377555843,1754441499431,-1757.75,0.00036164,14]
[377555844,1754441499440,-1657.2,0.00036164,14]
[377555845,1754441499449,-151.0,0.00036164,7]
[377555846,1754441499458,-400.0,0.00036164,14]
[377555847,1754441499467,-1893.76,0.00036164,14]
[377555848,1754441499477,-2031.11,0.00036164,14]
[377555849,1754441499486,-1477.33,0.00036164,14]
[377555850,1754441499495,-1102.74,0.00036164,14]
[377555851,1754441499506,-501.07,0.00036164,14]
[377555852,1754441499515,-400.0,0.00036164,14]
[377555853,1754441499524,-630.85,0.00036164,14]
[377555854,1754441499534,-952.88,0.00036164,14]
[377555855,1754441499543,-400.0,0.00036164,14]
[377555856,1754441499552,-519.23,0.00036164,14]
[377555857,1754441499562,-925.31,0.00036164,14]
[377555858,1754441499582,-400.0,0.00036164,14]
[377555859,1754441499592,-1255.85,0.00036164,14]
[377555860,1754441499604,-2587.56,0.00036164,14]
[377555861,1754441499613,-1894.4,0.00036164,14]
[377555862,1754441499624,-400.0,0.00036164,14]
[377555863,1754441499635,-400.0,0.00036164,14]
[377555864,1754441499644,-4316.85,0.00036164,14]
[377555865,1754441499656,-1100.3,0.00036164,14]
[377555866,1754441499665,-151.0,0.00036164,7]
[377555867,1754441499675,-497.31,0.00036164,14]
[377555868,1754441499685,-904.54,0.00036164,14]
[377555869,1754441499694,-2053.44,0.00036164,14]
[377555870,1754441499704,-250.48630776,0.00036164,14]
[377555871,1754441499714,-1448.21,0.00036164,14]
[377555872,1754441499724,-400.0,0.00036164,14]
[377555873,1754441499734,-462.19,0.00036164,14]
[377555874,1754441499744,-465.37150674,0.00036164,14]
[377555875,1754441499754,-1080.14,0.00036164,14]
[377555876,1754441499764,-1158.46,0.00036164,14]
[377555877,1754441499773,-977.25,0.00036164,14]
[377555878,1754441499783,-400.0,0.00036164,14]
[377555879,1754441499792,-707.07,0.00036164,14]
[377555880,1754441499801,-2207.72,0.00036164,14]
[377555881,1754441499810,-881.35,0.00036164,14]
[377555882,1754441499820,-1193.11,0.00036164,14]
[377555883,1754441499829,-400.0,0.00036164,14]
[377555884,1754441499839,-2430.29,0.00036164,14]
[377555885,1754441499849,-400.0,0.00036164,14]
[377555886,1754441499859,-922.84,0.00036164,14]
[377555887,1754441499870,-493.51,0.00036164,14]
[377555888,1754441499879,-1878.77,0.00036164,14]
[377555889,1754441499914,-903.37,0.00036164,14]
[377555890,1754441499938,-436.62,0.00036164,14]
[377555891,1754441499962,-500.0,0.00036164,10]
[377555892,1754441499988,-526.04,0.00036164,14]
[377555893,1754441500007,-825.0,0.00036164,14]
[377555894,1754441500028,-740.92,0.00036164,14]
[377555895,1754441500054,-400.0,0.00036164,14]
[377555896,1754441500075,-2236.89,0.00036164,14]
[377555897,1754441500096,-439.13,0.00036164,14]
[377555898,1754441500118,-2520.4,0.00036164,14]
[377555899,1754441500141,-549.73,0.00036164,14]
[377555900,1754441500156,-1499.23,0.00036164,14]
[377555901,1754441500176,-400.0,0.00036164,14]
[377555902,1754441500189,-4089.12,0.00036164,14]
[377555903,1754441500209,-400.0,0.00036164,14]
[377555904,1754441500224,-400.0,0.00036164,14]
[377555905,1754441500242,-400.0,0.00036164,14]
[377555906,1754441500259,-400.0,0.00036164,14]
[377555907,1754441500277,-400.0,0.00036164,14]
[377555908,1754441500295,-400.0,0.00036164,14]
[377555909,1754441500312,-1632.55,0.00036164,14]
[377555910,1754441500329,-2255.11,0.00036164,14]
[377555911,1754441500346,-1161.1,0.00036164,14]
[377555912,1754441500363,-400.0,0.00036164,14]
[377555913,1754441500379,-400.0,0.00036164,14]
[377555914,1754441500396,-1526.0,0.00036164,14]
[377555915,1754441500412,-1231.72,0.00036164,14]
[377555916,1754441500428,-1045.26,0.00036164,14]
[377555917,1754441500444,-481.26,0.00036164,14]
[377555918,1754441500461,-614.99,0.00036164,14]
[377555919,1754441500477,-848.82,0.00036164,14]
[377555920,1754441500492,-400.0,0.00036164,14]
[377555921,1754441500508,-400.0,0.00036164,14]
[377555922,1754441500524,-400.0,0.00036164,14]
[377555923,1754441500540,-400.0,0.00036164,14]
[377555924,1754441500556,-400.0,0.00036164,14]
[377555925,1754441500571,-2603.49,0.00036164,14]
[377555926,1754441500588,-2749.27,0.00036164,14]
[377555927,1754441500603,-400.0,0.00036164,14]
[377555928,1754441500618,-400.0,0.00036164,14]
[377555929,1754441500634,-1991.05,0.00036164,14]
[377555930,1754441500649,-400.0,0.00036164,14]
[377555931,1754441500665,-400.0,0.00036164,14]
[377555932,1754441500681,-1428.97,0.00036164,14]
[377555933,1754441500696,-2101.34,0.00036164,14]
[377555934,1754441500720,-541.6017431,0.00036164,14]
[377555935,1754441500741,-400.0,0.00036164,14]
[377555936,1754441500763,-2646.64,0.00036164,14]
[377555937,1754441500785,-400.0,0.00036164,14]
[377555938,1754441500806,-1706.21,0.00036164,14]
[377555939,1754441500825,-1917.12,0.00036164,14]
[377555940,1754441500844,-400.0,0.00036164,14]
[377555941,1754441500863,-630.11,0.00036164,14]
[377555942,1754441500881,-601.21,0.00036164,14]
[377555943,1754441500899,-1307.75,0.00036164,14]
[377555944,1754441500916,-861.26,0.00036164,14]
[377555945,1754441500934,-3088.66,0.00036164,14]
[377555946,1754441500953,-400.0,0.00036164,14]
[377555947,1754441500971,-400.0,0.00036164,14]
[377555948,1754441500987,-400.0,0.00036164,14]
[377555949,1754441501003,-400.0,0.00036164,14]
[377555950,1754441501020,-400.0,0.00036164,14]
[377555951,1754441501037,-577.39,0.00036164,14]
[377555952,1754441501053,-1815.96,0.00036164,14]
[377555953,1754441501070,-895.14,0.00036164,14]
[377555954,1754441501086,-623.46,0.00036164,14]
[377555955,1754441501102,-806.26,0.00036164,14]
[377555956,1754441501118,-460.7,0.00036164,14]
[377555957,1754441501134,-1943.08,0.00036164,14]
[377555958,1754441501150,-400.0,0.00036164,14]
[377555959,1754441501166,-1002.33,0.00036164,14]
[377555960,1754441501182,-1657.13,0.00036164,14]
[377555961,1754441501209,-528.55,0.00036164,14]
[377555962,1754441501225,-2363.22,0.00036164,14]
[377555963,1754441501240,-572.9,0.00036164,14]
[377555964,1754441501255,-400.0,0.00036164,14]
[377555965,1754441501270,-400.0,0.00036164,14]
[377555966,1754441501285,-400.0,0.00036164,14]
[377555967,1754441501300,-2160.8,0.00036164,14]
[377555968,1754441501315,-406.6,0.00036164,14]
[377555969,1754441501330,-2911.64,0.00036164,14]
[377555970,1754441501346,-3643.68,0.00036164,14]
[377555971,1754441501361,-400.0,0.00036164,14]
[377555972,1754441501376,-1625.69,0.00036164,14]
[377555973,1754441501391,-1957.52,0.00036164,14]
[377555974,1754441501406,-632.07,0.00036164,14]
[377555975,1754441501421,-1030.16,0.00036164,14]
[377555976,1754441501436,-713.56,0.00036164,14]
[377555977,1754441501451,-1038.48,0.00036164,14]
[377555978,1754441501466,-1237.73,0.00036164,14]
[377555979,1754441501480,-1961.29,0.00036164,14]
[377555980,1754441501496,-1426.08,0.00036164,14]
[377555981,1754441501512,-400.0,0.00036164,14]
[377555982,1754441501526,-1938.19,0.00036164,14]
[377555983,1754441501541,-400.0,0.00036164,14]
[377555984,1754441501556,-400.0,0.00036164,14]
[377555985,1754441501570,-400.0,0.00036164,14]
[377555986,1754441501585,-402.66,0.00036164,14]
[377555987,1754441501600,-400.0,0.00036164,14]
[377555988,1754441501616,-2326.11,0.00036164,14]
[377555989,1754441501632,-742.0,0.00036164,14]
[377555990,1754441501647,-400.0,0.00036164,14]
[377555991,1754441501662,-3571.24,0.00036164,14]
[377555992,1754441501677,-1748.34,0.00036164,14]
[377555993,1754441501693,-400.0,0.00036164,14]
[377555994,1754441501709,-1890.62,0.00036164,14]
[377555995,1754441501725,-400.0,0.00036164,14]
[377555996,1754441501740,-400.0,0.00036164,14]
[377555997,1754441501756,-439.39,0.00036164,14]
[377555998,1754441501772,-2107.23,0.00036164,14]
[377555999,1754441501787,-1023.3,0.00036164,14]
[377556000,1754441501802,-2052.53,0.00036164,14]
[377556001,1754441501823,-400.0,0.00036164,14]
[377556002,1754441501844,-602.65,0.00036164,14]
[377556003,1754441501865,-400.0,0.00036164,14]
[377556004,1754441501883,-1394.47,0.00036164,14]
[377556005,1754441501901,-2085.31,0.00036164,14]
[377556006,1754441501919,-827.22,0.00036164,14]
[377556007,1754441501938,-400.0,0.00036164,14]
[377556008,1754441501955,-1245.53,0.00036164,14]
[377556009,1754441501972,-400.0,0.00036164,14]
[377556010,1754441501989,-430.67,0.00036164,14]
[377556011,1754441502005,-400.0,0.00036164,14]
[377556012,1754441502021,-400.0,0.00036164,14]
[377556013,1754441502037,-1904.14,0.00036164,14]
[377556014,1754441502054,-1861.75,0.00036164,14]
[377556015,1754441502071,-1014.31,0.00036164,14]
[377556016,1754441502087,-1956.4,0.00036164,14]
[377556017,1754441502103,-2247.55,0.00036164,14]
[377556018,1754441502119,-400.0,0.00036164,14]
[377556019,1754441502134,-1722.79,0.00036164,14]
[377556020,1754441502149,-549.83,0.00036164,14]
[377556021,1754441502165,-400.0,0.00036164,14]
[377556022,1754441502180,-404.04,0.00036164,14]
[377556023,1754441502195,-400.0,0.00036164,14]
[377556024,1754441502210,-435.48,0.00036164,14]
[377556025,1754441502225,-1914.77,0.00036164,14]
[377556026,1754441502241,-1121.88,0.00036164,14]
[377556027,1754441502256,-2913.9,0.00036164,14]
[377556028,1754441502271,-400.0,0.00036164,14]
[377556029,1754441502286,-2715.55,0.00036164,14]
[377556030,1754441502302,-2248.39,0.00036164,14]
[377556031,1754441502316,-2748.9,0.00036164,14]
[377556032,1754441502332,-817.07,0.00036164,14]
[377556033,1754441502346,-1449.42,0.00036164,14]
[377556034,1754441502361,-1621.38,0.00036164,14]
[377556035,1754441502376,-400.0,0.00036164,2]
[377556036,1754441502391,-12660.55,0.00036164,14]
[377556037,1754441502407,-321.31993745,0.00036164,14]
[377556038,1754441502421,-1706.84,0.00036164,14]
[377556039,1754441502436,-5031.8,0.00036164,14]
[377556040,1754441502450,-1514.45,0.00036164,14]
[377556041,1754441502464,-2014.83,0.00036164,14]
[377556042,1754441502478,-456.83,0.00036164,14]
[377556043,1754441502494,-968.48,0.00036164,14]
[377556044,1754441502508,-1585.71,0.00036164,14]
[377556045,1754441502523,-899.01,0.00036164,14]
[377556046,1754441502537,-1000.23,0.00036164,14]
[377556047,1754441502553,-400.0,0.00036164,14]
[377556048,1754441502898,-400.0,0.00036164,14]
[377556049,1754441502931,-400.0,0.00036164,14]
[377556050,1754441502942,-400.0,0.00036164,14]
[377556051,1754441502952,-1532.07,0.00036164,14]
[377556052,1754441502963,-400.0,0.00036164,14]
[377556053,1754441502972,-400.0,0.00036164,14]
[377556054,1754441502982,-400.0,0.00036164,14]
[377556055,1754441502991,-2636.96,0.00036164,14]
[377556056,1754441503001,-590.91,0.00036164,14]
[377556057,1754441503012,-792.45,0.00036164,14]
[377556058,1754441503022,-1172.64,0.00036164,14]
[377556059,1754441503032,-400.0,0.00036164,14]
[377556060,1754441503042,-1959.05,0.00036164,14]
[377556061,1754441503052,-478.79,0.00036164,14]
[377556062,1754441503063,-3803.38,0.00036164,14]
[377556063,1754441503072,-1632.7,0.00036164,14]
[377556064,1754441503083,-1629.83,0.00036164,14]
[377556065,1754441503093,-1431.63,0.00036164,14]
[377556066,1754441503103,-400.0,0.00036164,14]
[377556067,1754441503114,-400.0,0.00036164,14]
[377556068,1754441503123,-4205.53,0.00036164,14]
[377556069,1754441503132,-1973.77,0.00036164,14]
[377556070,1754441503142,-400.0,0.00036164,14]
[377556071,1754441503151,-151.0,0.00036164,7]
[377556072,1754441503161,-400.0,0.00036164,14]
[377556073,1754441503171,-1566.15,0.00036164,14]
[377556074,1754441503180,-151.0,0.00036164,7]
[377556075,1754441503190,-2127.91,0.00036164,14]
[377556076,1754441503199,-400.0,0.00036164,14]
[377556077,1754441503210,-400.0,0.00036164,14]
[377556078,1754441503220,-400.0,0.00036164,14]
[377556079,1754441503230,-963.28,0.00036164,14]
[377556080,1754441503240,-734.5,0.00036164,14]
[377556081,1754441503249,-400.0,0.00036164,14]
[377556082,1754441503259,-442.1,0.00036164,14]
[377556083,1754441503269,-400.0,0.00036164,14]
[377556084,1754441503278,-1059.75,0.00036164,14]
[377556085,1754441503288,-2598.62,0.00036164,14]
[377556086,1754441503297,-2705.93,0.00036164,14]
[377556087,1754441503306,-2228.25,0.00036164,14]
[377556088,1754441503315,-1000.0,0.00036164,30]
[377556089,1754441503324,-400.0,0.00036164,14]
[377556090,1754441503334,-151.0,0.00036164,7]
[377556091,1754441503344,-400.0,0.00036164,14]
[377556092,1754441503353,-416.66,0.00036164,14]
[377556093,1754441503362,-500.0,0.00036164,30]
[377556094,1754441503371,-674.04,0.00036164,14]
[377556095,1754441503380,-400.0,0.00036164,14]
[377556096,1754441503390,-400.0,0.00036164,14]
[377556097,1754441503399,-400.0,0.00036164,14]
[377556098,1754441503408,-2529.23,0.00036164,14]
[377556099,1754441503418,-418.18,0.00036164,14]
[377556100,1754441503427,-594.47,0.00036164,14]
[377556101,1754441503436,-487.48,0.00036164,14]
[377556102,1754441503446,-1672.24,0.00036164,14]
[377556103,1754441503455,-1448.73,0.00036164,14]
[377556104,1754441503465,-1955.09,0.00036164,14]
[377556105,1754441503474,-3608.72,0.00036164,14]
[377556106,1754441503483,-400.0,0.00036164,14]
[377556107,1754441503495,-2012.62,0.00036164,14]
[377556108,1754441503509,-1120.59,0.00036164,14]
[377556109,1754441503519,-400.0,0.00036164,14]
[377556110,1754441503529,-400.0,0.00036164,14]
[377556111,1754441503538,-1885.37,0.00036164,14]
[377556112,1754441503547,-400.0,0.00036164,14]
[377556113,1754441503558,-2262.39,0.00036164,14]
[377556114,1754441503568,-400.0,0.00036164,14]
[377556115,1754441503580,-976.76,0.00036164,14]
[377556116,1754441503593,-697.85,0.00036164,14]
[377556117,1754441503603,-1752.12,0.00036164,14]
[377556118,1754441503612,-400.0,0.00036164,14]
[377556119,1754441503622,-400.0,0.00036164,14]
[377556120,1754441503632,-400.0,0.00036164,14]
[377556121,1754441503642,-2601.56,0.00036164,14]
[377556122,1754441503653,-1184.93,0.00036164,14]
[377556123,1754441503663,-400.0,0.00036164,14]
[377556124,1754441503674,-400.0,0.00036164,14]
[377556125,1754441503685,-1143.49,0.00036164,14]
[377556126,1754441503697,-400.0,0.00036164,14]
[377556127,1754441503707,-1089.26,0.00036164,14]
[377556128,1754441503717,-1546.02,0.00036164,14]
[377556129,1754441503727,-400.0,0.00036164,14]
[377556130,1754441503737,-400.0,0.00036164,14]
[377556131,1754441503747,-2120.77,0.00036164,14]
[377556132,1754441503757,-1968.31,0.00036164,14]
[377556133,1754441503767,-1973.83,0.00036164,14]
[377556134,1754441503778,-404.38,0.00036164,14]
[377556135,1754441503789,-400.0,0.00036164,14]
[377556136,1754441503800,-400.0,0.00036164,14]
[377556137,1754441503810,-1433.5,0.00036164,14]
[377556138,1754441503821,-2230.76,0.00036164,14]
[377556139,1754441503831,-400.0,0.00036164,14]
[377556140,1754441503843,-2230.76,0.00036164,14]
[377556141,1754441503852,-400.0,0.00036164,14]
[377556142,1754441503867,-400.0,0.00036164,14]
[377556143,1754441503876,-151.0,0.00036164,7]
[377556144,1754441503887,-491.84,0.00036164,14]
[377556145,1754441503897,-2712.5,0.00036164,14]
[377556146,1754441503907,-2172.68,0.00036164,14]
[377556147,1754441503917,-754.87,0.00036164,14]
[377556148,1754441503926,-1745.64,0.00036164,14]
[377556149,1754441503936,-1321.58,0.00036164,14]
[377556150,1754441503946,-400.0,0.00036164,14]
[377556151,1754441503956,-637.65,0.00036164,14]
[377556152,1754441503965,-1572.7,0.00036164,14]
[377556153,1754441503976,-2465.94,0.00036164,14]
[377556154,1754441503986,-400.0,0.00036164,14]
[377556155,1754441503996,-400.0,0.00036164,14]
[377556156,1754441504006,-2822.57,0.00036164,14]
[377556157,1754441504016,-400.0,0.00036164,14]
[377556158,1754441504028,-2639.92,0.00036164,14]
[377556159,1754441504037,-600.46,0.00036164,14]
[377556160,1754441504047,-1062.69,0.00036164,14]
[377556161,1754441504056,-646.78,0.00036164,14]
[377556162,1754441504066,-3354.37,0.00036164,14]
[377556163,1754441504075,-400.0,0.00036164,14]
[377556164,1754441504085,-653.54,0.00036164,14]
[377556165,1754441504095,-400.0,0.00036164,14]
[377556166,1754441504105,-439.55,0.00036164,14]
[377556167,1754441504115,-400.0,0.00036164,14]
[377556168,1754441504124,-1550.77,0.00036164,14]
[377556169,1754441504135,-3631.96,0.00036164,14]
[377556170,1754441504145,-950.2,0.00036164,14]
[377556171,1754441504155,-275.84966423,0.00036164,14]
[377556172,1754441504164,-1175.89,0.00036164,14]
[377556173,1754441504176,-400.0,0.00036164,14]
[377556174,1754441504186,-400.0,0.00036164,14]
[377556175,1754441504195,-2387.83,0.00036164,14]
[377556176,1754441504205,-400.0,0.00036164,14]
[377556177,1754441504215,-400.0,0.00036164,14]
[377556178,1754441504226,-468.7,0.00036164,14]
[377556179,1754441504236,-547.96550594,0.00036164,14]
[377556180,1754441504248,-1287.39,0.00036164,14]